bitfinex-derivatives/quotes_SOLF0:USTF0_20250311
["timestamp","ask_amount","ask_price","bid_price","bid_amount"]
[1741716751279,0.05565401,126.31,126.3,7.919]
[1741716751483,261.36,126.39,126.3,190.0]
[1741716751686,261.36,126.39,126.31,7.9077]
[1741716752682,6.873e-05,126.35,126.33,0.06078689]
[1741716752985,8.3135,126.44,126.34,42.36]
[1741716753373,7.9121,126.41,126.34,42.36]
[1741716753583,8.3135,126.44,126.34,42.36]
[1741716754188,0.06044177,126.4,126.38,0.05160295]
[1741716754874,0.06044177,126.4,126.38,7.96500295]
[1741716755078,0.06044177,126.4,126.38,0.05160295]
[1741716755990,0.06044177,126.4,126.39,7.9134]
[1741716756183,0.06044177,126.4,126.38,42.57160295]
[1741716758784,0.06044177,126.4,126.39,7.9134]
[1741716758986,265.3888,126.46,126.38,42.57160295]
[1741716759184,273.2982,126.46,126.39,4.2413]
[1741716759385,265.3888,126.46,126.39,4.2413]
[1741716759582,269.2694,126.46,126.39,4.2413]
[1741716759789,261.36,126.46,126.39,4.2413]
[1741716760093,261.36,126.46,126.4,7.9124]
[1741716760297,0.05731394,126.44,126.41,0.05760565]
[1741716760494,0.05731394,126.44,126.41,7.96950565]
[1741716760792,0.05731394,126.44,126.42,43.46]
[1741716760996,261.36,126.46,126.42,47.6781]
[1741716761187,261.36,126.46,126.44,7.9098]
[1741716761383,261.36,126.46,126.42,47.6781]
[1741716761692,261.18,126.52,126.42,80.26239551]
[1741716762084,0.05938056,126.48,126.46,0.05986742]
[1741716762386,0.05938056,126.48,126.47,43.4]
[1741716762587,0.05938056,126.48,126.47,51.3084]
[1741716762788,261.18,126.52,126.47,43.4]
[1741716763090,261.18,126.52,126.46,0.05986742]
[1741716763296,4.0095,126.51,126.46,0.05986742]
[1741716763689,7.9084,126.47,126.46,0.05986742]
[1741716764394,40.86414873,126.5,126.46,0.05986742]
[1741716764792,0.05225322,126.5,126.46,0.05986742]
[1741716765390,7.9084,126.47,126.46,0.05986742]
[1741716765790,7.91,126.45,126.41,43.48]
[1741716766398,7.9087,126.47,126.41,43.48]
[1741716766597,304.66,126.52,126.41,43.48]
[1741716766789,32.58429551,126.51,126.41,43.48]
[1741716766995,0.0523135,126.48,126.45,0.05874154]
[1741716767294,32.58429551,126.54,126.45,76.00303705]
[1741716767498,192.0,126.64,126.52,32.58429551]
[1741716767795,1.37579316,126.62,126.53,48.4746]
[1741716767997,1.37579316,126.62,126.53,57.0494]
[1741716768295,43.01415761,126.66,126.56,32.58429551]
[1741716768599,0.05756999,126.59,126.57,44.74]
[1741716768789,43.01415761,126.66,126.57,44.74]
[1741716769192,0.05989187,126.59,126.57,0.05410018]
[1741716769394,32.58429551,126.63,126.53,58.5894]
[1741716769687,0.05201622,126.59,126.57,0.05469309]
[1741716770094,1.37481481,126.65,126.57,0.05469309]
[1741716770394,0.05931518,126.59,126.58,45.9]
[1741716770595,43.01415761,126.66,126.58,45.9]
[1741716770796,43.01415761,126.66,126.6,0.05043719]
[1741716770994,0.05338348,126.63,126.59,4.3298]
[1741716771196,0.05338348,126.63,126.62,0.05691941]
[1741716771394,0.05338348,126.63,126.62,46.15691941]
[1741716771796,0.05338348,126.63,126.62,54.05591941]
[1741716771992,265.1912,126.7,126.62,54.05591941]
[1741716772192,265.1912,126.7,126.62,46.1]
[1741716773292,0.0603297,126.67,126.65,0.06090253]
[1741716773498,0.0603297,126.67,126.59,50.4498]
[1741716774002,32.58429551,126.67,126.59,50.4498]
[1741716774299,52.55482527,126.68,126.59,50.4498]
[1741716774500,52.55482527,126.68,126.6,7.8998]
[1741716774802,0.055797,126.65,126.62,0.05603922]
[1741716775000,0.055797,126.65,126.63,46.14]
[1741716775206,0.055797,126.65,126.64,7.8973]
[1741716775399,265.1912,126.7,126.63,46.14]
[1741716775600,265.1912,126.7,126.63,46.19692689]
[1741716776101,265.1912,126.7,126.64,46.6]
[1741716776405,265.1912,126.7,126.59,103.44462527]
[1741716776600,265.1912,126.7,126.59,50.8898]
[1741716776806,7.8959,126.67,126.66,2.633e-05]
[1741716777106,52.55482527,126.68,126.56,7.9022]
[1741716777404,52.55482527,126.68,126.55,4.167]
[1741716777605,46.7,126.67,126.59,7.9004]
[1741716777798,8.2675,126.69,126.59,46.68]
[1741716778003,0.05875015,126.64,126.62,0.05815183]
[1741716778198,7.8955,126.68,126.63,54.5784]
[1741716778401,265.1912,126.7,126.63,46.68]
[1741716778602,266.76973196,126.7,126.61,8.376]
[1741716779305,265.1912,126.7,126.61,60.93082527]
[1741716779504,0.05958396,126.67,126.64,0.06039469]
[1741716780306,52.61440923,126.67,126.57,190.0]
[1741716780498,52.61440923,126.67,126.58,7.9015]
[1741716780705,52.55482527,126.67,126.56,46.76]
[1741716781009,265.1912,126.7,126.56,236.76]
[1741716781209,7.8973,126.65,126.56,236.76]
[1741716781401,265.1912,126.7,126.56,236.76]
[1741716781605,0.05960612,126.62,126.59,0.05701226]
[1741716781801,0.05960612,126.62,126.6,46.74]
[1741716782008,4.2312,126.7,126.61,58.7573]
[1741716782204,317.50602527,126.7,126.61,50.858]
[1741716782606,317.50602527,126.7,126.61,46.7]
[1741716783002,7.8975,126.65,126.61,54.5993]
[1741716783210,7.8975,126.65,126.64,0.05347164]
[1741716783910,7.8975,126.65,126.64,7.164e-05]
[1741716785407,7.95539672,126.66,126.64,7.164e-05]
[1741716785610,0.05849672,126.66,126.64,7.164e-05]
[1741716786009,7.8971,126.65,126.64,7.164e-05]
[1741716786918,7.9006,126.6,126.55,7.9029]
[1741716787110,260.7,126.61,126.54,98.89482527]
[1741716787306,260.7,126.67,126.61,7.8992]
[1741716787512,260.7,126.67,126.6,46.34]
[1741716787919,260.7,126.67,126.6,98.89482527]
[1741716788110,0.05944387,126.65,126.62,0.06027077]
[1741716788308,260.7,126.67,126.66,7.8965]
[1741716788510,260.7,126.73,126.64,46.24]
[1741716789112,52.55482527,126.72,126.64,46.24]
[1741716789321,52.55482527,126.72,126.61,58.4072]
[1741716789514,0.05459351,126.69,126.67,0.0514598]
[1741716791316,7.8953,126.68,126.67,0.0514598]
[1741716791519,0.05459351,126.69,126.67,0.0514598]
[1741716791818,7.94969351,126.69,126.67,0.0514598]
[1741716792118,0.05459351,126.69,126.67,0.0514598]
[1741716792415,0.05459351,126.69,126.67,7.9472598]
[1741716792614,260.7,126.73,126.67,0.0514598]
[1741716792918,39.4066,126.91,126.71,7.8931]
[1741716792919,260.64,126.79,126.71,7.8931]
[1741716793112,260.64,126.79,126.72,46.06]
[1741716794014,260.64,126.79,126.74,0.05804466]
[1741716794520,7.8908,126.76,126.74,0.05804466]
[1741716794821,260.64,126.79,126.74,0.05804466]
[1741716795525,7.8904,126.76,126.74,0.05804466]
[1741716795820,260.64,126.79,126.74,0.05804466]
[1741716796022,7.8896,126.78,126.74,0.05804466]
[1741716796225,260.64,126.79,126.74,0.05804466]
[1741716797223,260.64,126.79,126.74,7.94924466]
[1741716797417,260.64,126.79,126.74,0.05804466]
[1741716797619,7.89,126.77,126.74,0.05804466]
[1741716797918,260.64,126.79,126.74,0.05804466]
[1741716798112,7.8909,126.75,126.74,0.05804466]
[1741716798322,260.64,126.79,126.74,0.05804466]
[1741716798713,7.8894,126.78,126.74,0.05804466]
[1741716798913,260.64,126.79,126.74,0.05804466]
[1741716801415,7.8899,126.77,126.74,0.05804466]
[1741716801721,260.64,126.79,126.74,0.05804466]
[1741716803126,260.64,126.79,126.75,45.26]
[1741716803625,260.64,126.79,126.74,0.05804466]
[1741716804019,7.8909,126.75,126.74,0.05804466]
[1741716804425,32.27857074,126.76,126.61,450.64]
[1741716804620,32.27857074,126.76,126.67,45.2]
[1741716804924,4.2644,126.75,126.63,32.27857074]
[1741716805118,32.27857074,126.73,126.62,53.4422]
[1741716805315,77.45857074,126.73,126.62,53.4422]
[1741716805521,77.45857074,126.73,126.62,85.72077074]
[1741716805721,0.05098469,126.69,126.67,7.8958]
[1741716805923,0.05098469,126.69,126.67,45.14]
[1741716806123,4.2644,126.75,126.67,45.14]
[1741716806425,36.54297074,126.75,126.67,45.14]
[1741716806732,0.05296095,126.72,126.67,45.14]
[1741716807022,0.05296095,126.72,126.7,0.05504675]
[1741716807222,7.8934,126.71,126.7,0.05504675]
[1741716807526,0.05296095,126.72,126.67,45.14]
[1741716808624,0.05296095,126.72,126.68,0.05336111]
[1741716810736,260.48,126.71,126.68,0.05336111]
[1741716811030,260.48,126.71,126.65,44.98]
[1741716811330,7.8951,126.69,126.65,44.98]
[1741716811630,32.27857074,126.72,126.65,44.98]
[1741716811828,7.8949,126.69,126.65,52.8767]
[1741716812029,260.5,126.71,126.65,44.98]
[1741716812330,0.05056251,126.68,126.66,0.0505929]
[1741716812519,0.05056251,126.68,126.67,7.8959]
[1741716812726,0.05056251,126.68,126.66,0.0505929]
[1741716813527,7.94626251,126.68,126.66,0.0505929]
[1741716813727,0.05056251,126.68,126.66,45.0305929]
[1741716814130,0.05056251,126.68,126.66,52.9266929]
[1741716814321,0.05056251,126.68,126.66,45.0305929]
[1741716814726,0.05056251,126.68,126.67,7.8959]
[1741716815030,0.05056251,126.68,126.66,45.0305929]
[1741716815830,0.05056251,126.68,126.67,7.8959]
[1741716816332,260.5,126.71,126.66,45.0305929]
[1741716816528,7.8925,126.73,126.66,45.0305929]
[1741716816735,7.8929,126.72,126.66,45.0305929]
[1741716816933,3.9781,126.74,126.66,45.0305929]
[1741716817234,7.8926,126.73,126.66,44.98]
[1741716817428,0.05596239,126.71,126.69,0.0522639]
[1741716817628,0.05596239,126.71,126.7,44.52]
[1741716817828,260.52,126.77,126.74,7.8912]
[1741716818027,260.52,126.77,126.74,44.5]
[1741716818232,260.57052783,126.77,126.74,44.5]
[1741716818432,0.05052783,126.77,126.74,44.55038239]
[1741716818837,0.05052783,126.77,126.76,7.8903]
[1741716819835,0.05052783,126.77,126.75,7.8905]
[1741716820038,0.05052783,126.77,126.75,44.7]
[1741716820440,0.05052783,126.77,126.76,7.8903]
[1741716820741,0.05052783,126.77,126.75,44.7]
[1741716820941,264.5059,126.83,126.78,7.8887]
[1741716821142,272.3922,126.83,126.78,7.8887]
[1741716821337,264.5059,126.83,126.75,44.7]
[1741716822045,264.5059,126.83,126.79,7.888]
[1741716822245,0.05201977,126.8,126.78,0.05905978]
[1741716823139,0.05201977,126.8,126.79,7.8884]
[1741716823540,0.05201977,126.8,126.78,7.94805978]
[1741716823747,0.05201977,126.8,126.78,0.05905978]
[1741716824247,4.0591,126.87,126.79,44.16]
[1741716824646,4.0591,126.87,126.81,7.8869]
[1741716824946,4.0591,126.87,126.79,48.4389]
[1741716825141,264.4239,126.89,126.82,7.8866]
[1741716825349,264.4239,126.89,126.82,0.05159911]
[1741716826145,7.8859,126.83,126.82,0.05159911]
[1741716826347,260.4,126.89,126.82,0.05159911]
[1741716826547,12.6883,126.88,126.82,0.05159911]
[1741716826743,7.8857,126.84,126.82,0.05159911]
[1741716826945,12.6883,126.88,126.82,0.05159911]
[1741716827246,7.885,126.85,126.82,0.05159911]
[1741716827549,12.6883,126.88,126.82,0.05159911]
[1741716828854,7.8858,126.84,126.82,0.05159911]
[1741716829153,56.4483,126.88,126.82,0.05159911]
[1741716829355,7.8859,126.83,126.82,0.05159911]
[1741716829548,32.27857074,126.85,126.75,4.0104]
[1741716829855,32.27857074,126.82,126.73,4.1499]
[1741716830056,268.5185,126.81,126.73,43.64]
[1741716830354,260.32,126.8,126.73,43.64]
[1741716830651,260.32,126.8,126.7,4.0104]
[1741716830853,260.32,126.8,126.75,0.05394157]
[1741716830854,0.05222709,126.78,126.75,0.05394157]
[1741716831454,7.8928,126.72,126.71,43.56]
[1741716831753,32.27857074,126.78,126.68,43.48]
[1741716831948,7.8926,126.73,126.68,43.48]
[1741716832145,33.65211037,126.78,126.68,43.48]
[1741716832351,32.27857074,126.75,126.64,43.42]
[1741716832553,52.02542499,126.74,126.63,42.51449778]
[1741716832753,32.27857074,126.72,126.63,42.51449778]
[1741716832952,260.36,126.71,126.63,42.51449778]
[1741716833155,32.27857074,126.69,126.63,42.51449778]
[1741716833853,0.05774085,126.67,126.65,0.05293518]
[1741716834059,7.95414085,126.67,126.65,0.05293518]
[1741716834258,0.05774085,126.67,126.65,0.05293518]
[1741716834652,7.8965,126.66,126.65,0.05293518]
[1741716834953,0.05774085,126.67,126.59,43.26]
[1741716835153,7.8945,126.7,126.6,32.27857074]
[1741716835757,268.2536,126.71,126.6,32.27857074]
[1741716835957,0.05186844,126.66,126.64,0.0559529]
[1741716836155,0.05186844,126.66,126.65,7.8971]
[1741716836361,260.36,126.71,126.64,43.1959529]
[1741716837053,260.36,126.71,126.65,32.27857074]
[1741716837357,0.05645678,126.69,126.68,32.27857074]
[1741716837557,307.428,126.77,126.68,75.43857074]
[1741716837858,264.348,126.77,126.68,75.43857074]
[1741716838252,264.348,126.77,126.7,7.8938]
[1741716838553,0.05206348,126.75,126.72,0.0599342]
[1741716839152,0.05206348,126.75,126.72,43.1199342]
[1741716839858,0.05206348,126.75,126.74,7.8915]
[1741716840457,4.2473,126.81,126.73,4.0162]
[1741716840660,4.1235,126.82,126.74,32.27857074]
[1741716841059,260.44,126.83,126.81,7.8871]
[1741716841258,260.44,126.83,126.78,43.2]
[1741716841559,260.44,126.83,126.78,43.18]
[1741716841956,0.05657618,126.82,126.79,0.0600205]
[1741716842153,7.8839,126.87,126.8,32.27857074]
[1741716842351,260.44,126.89,126.8,52.35924058]
[1741716842563,10.7535394,126.9,126.83,52.35924058]
[1741716842760,10.7535394,126.9,126.84,43.28]
[1741716843466,10.7535394,126.9,126.86,0.053128]
[1741716843659,10.7535394,126.9,126.87,7.8841]
[1741716844065,10.7535394,126.9,126.86,0.053128]
[1741716844266,10.7535394,126.9,126.89,7.883]
[1741716844459,260.4,126.94,126.89,51.143]
[1741716844664,260.4,126.94,126.89,43.26]
[1741716845162,355.93924058,126.94,126.9,0.0592108]
[1741716845362,355.93924058,126.94,126.9,1.08e-05]
[1741716845564,355.93924058,126.94,126.84,43.18]
[1741716845761,303.58,126.94,126.84,43.18]
[1741716845963,7.8838,126.88,126.84,43.18]
[1741716846173,52.35924058,126.93,126.8,4.0323]
[1741716846465,52.35924058,126.9,126.8,47.2323]
[1741716846660,0.05467918,126.88,126.85,0.06002993]
[1741716847167,0.05467918,126.88,126.87,7.8842]
[1741716847562,0.05467918,126.88,126.86,4.3286]
[1741716847966,0.05467918,126.88,126.86,47.6086]
[1741716848365,0.05467918,126.88,126.86,43.28]
[1741716848760,0.05467918,126.88,126.87,7.8842]
[1741716848957,0.05467918,126.88,126.86,43.28]
[1741716849362,0.05467918,126.88,126.87,7.8842]
[1741716849864,0.05467918,126.88,126.86,51.1647]
[1741716850065,0.05467918,126.88,126.86,43.28]
[1741716850461,0.05467918,126.88,126.87,7.8842]
[1741716851666,264.4203,126.95,126.89,7.8825]
[1741716852468,7.8809,126.93,126.88,7.8831]
[1741716852664,260.32,126.95,126.88,3.9533]
[1741716852862,260.32,126.95,126.89,0.05457234]
[1741716852863,4.2827,126.94,126.89,0.05457234]
[1741716853464,260.32,126.95,126.89,0.05457234]
[1741716854167,260.32,126.95,126.92,7.8806]
[1741716854470,260.32,126.95,126.9,42.78]
[1741716854669,260.32,126.95,126.92,0.05578724]
[1741716855070,60.57384058,126.99,126.92,0.05578724]
[1741716855372,4.3164,126.99,126.92,0.05578724]
[1741716855775,7.8784,126.97,126.93,7.8802]
[1741716856272,4.3164,126.99,126.94,0.05862601]
[1741716856570,7.8793,126.95,126.94,0.05862601]
[1741716857964,7.8787,126.96,126.94,0.05862601]
[1741716858575,264.1767,127.01,126.94,42.45862601]
[1741716859570,264.1767,127.01,126.94,0.05862601]
[1741716859772,52.35924058,126.98,126.94,0.05862601]
[1741716859966,52.35924058,126.98,126.88,50.2234]
[1741716860169,7.8805,126.93,126.88,42.34]
[1741716860464,4.1248,126.97,126.88,42.34]
[1741716860771,7.879,126.96,126.88,42.34]
[1741716860971,4.1248,126.97,126.92,7.8808]
[1741716861171,0.05154087,126.93,126.92,42.26]
[1741716861371,4.1248,126.97,126.91,0.05334995]
[1741716861575,0.05722163,126.94,126.91,0.05334995]
[1741716861974,7.8805,126.93,126.91,0.05334995]
[1741716862176,0.05722163,126.94,126.91,0.05334995]
[1741716863066,7.8811,126.92,126.91,0.05334995]
[1741716863374,260.08,126.93,126.86,42.2]
[1741716863580,7.8841,126.88,126.86,42.2]
[1741716863780,4.0838,126.92,126.81,64.56214058]
[1741716864076,52.35924058,126.9,126.81,42.18]
[1741716864273,32.24872644,126.87,126.78,42.18]
[1741716864472,4.0838,126.86,126.75,32.24872644]
[1741716864673,0.05286901,126.84,126.81,0.05749953]
[1741716865480,0.05286901,126.84,126.76,32.24872644]
[1741716865481,0.05286901,126.84,126.76,42.18]
[1741716865778,260.08,126.85,126.76,42.18]
[1741716866078,302.2,126.85,126.76,42.18]
[1741716866779,7.8881,126.81,126.79,0.04970651]
[1741716867176,7.94822373,126.82,126.79,0.04970651]
[1741716867578,7.94822373,126.82,126.66,190.0]
[1741716867579,32.24872644,126.8,126.66,190.0]
[1741716867779,32.24872644,126.8,126.67,46.1249]
[1741716868170,7.8928,126.74,126.67,46.1249]
[1741716868369,36.43332644,126.8,126.67,46.1249]
[1741716868370,292.36872644,126.77,126.67,4.1049]
[1741716868573,32.24872644,126.74,126.65,4.2572]
[1741716868774,0.05208112,126.73,126.65,4.2572]
[1741716868972,42.05208112,126.73,126.65,4.2572]
[1741716869283,7.8974,126.66,126.62,56.77242971]
[1741716869483,32.24872644,126.71,126.62,56.77242971]
[1741716869484,260.22,126.69,126.62,56.77242971]
[1741716869686,268.116,126.69,126.62,64.67222971]
[1741716869982,260.22,126.69,126.62,89.02115615]
[1741716870187,0.05401012,126.67,126.64,0.0532524]
[1741716870775,7.8973,126.66,126.64,0.0532524]
[1741716871079,0.05401012,126.67,126.64,0.0532524]
[1741716871485,260.22,126.75,126.64,0.0532524]
[1741716871679,260.22,126.75,126.64,8.2335524]
[1741716871878,260.22,126.75,126.66,7.8971]
[1741716872175,52.51366587,126.73,126.64,50.1403]
[1741716872383,260.22,126.75,126.64,50.1403]
[1741716872684,0.05978438,126.7,126.67,0.05151129]
[1741716872876,0.05978438,126.7,126.68,42.02]
[1741716873282,0.05978438,126.7,126.68,42.07001505]
[1741716874175,260.22,126.75,126.68,44.43001505]
[1741716874373,312.85366587,126.81,126.69,52.51366587]
[1741716874577,260.34,126.81,126.69,242.51366587]
[1741716874782,312.85366587,126.87,126.75,52.51366587]
[1741716874986,7.885,126.86,126.8,7.8881]
[1741716875186,260.34,126.87,126.8,42.02]
[1741716875387,0.05599502,126.84,126.82,0.05190181]
[1741716875580,4.2277,126.88,126.82,0.05190181]
[1741716875581,43.01415761,126.9,126.82,0.05190181]
[1741716875982,43.01415761,126.9,126.89,7.883]
[1741716876287,43.01415761,126.9,126.89,42.02]
[1741716876482,36.45528011,126.9,126.89,42.02]
[1741716876683,23.46828011,126.9,126.89,49.903]
[1741716876882,23.46828011,126.9,126.89,42.02]
[1741716877277,0.05935058,126.91,126.88,0.05776685]
[1741716882686,7.883,126.89,126.88,0.05776685]
[1741716882988,0.05935058,126.91,126.84,41.48]
[1741716883192,0.05935058,126.91,126.84,49.3659]
[1741716883482,4.2132,126.91,126.84,41.48]
[1741716883686,4.2132,126.91,126.84,49.3655]
[1741716884088,0.05023356,126.89,126.86,0.05854614]
[1741716884291,7.8842,126.87,126.86,0.05854614]
[1741716884481,0.05023356,126.89,126.86,0.05854614]
[1741716885587,0.05023356,126.89,126.88,7.8836]
[1741716885789,0.05023356,126.89,126.88,49.1436]
[1741716885986,0.05023356,126.89,126.88,41.26]
[1741716888689,260.16,126.99,126.88,43.62]
[1741716888988,138.5419811,127.14,126.88,43.62]
[1741716888989,260.16,127.05,126.94,52.51366587]
[1741716889193,52.51366587,127.07,126.95,41.3]
[1741716889392,7.8737,127.04,126.96,4.122]
[1741716889591,3.9238,127.06,126.96,4.122]
[1741716889786,0.05040118,127.01,126.99,0.05166833]
[1741716889991,0.05040118,127.01,126.99,41.35166833]
[1741716890193,52.51366587,127.04,126.99,0.05166833]
[1741716890389,7.93117418,127.01,126.99,0.05166833]
[1741716890692,0.05517418,127.01,126.99,0.05166833]
[1741716891290,0.05517418,127.01,126.93,41.3]
[1741716891596,260.08,127.0,126.93,41.3]
[1741716891984,7.8763,127.0,126.93,49.1801]
[1741716892190,264.2168,127.03,126.93,41.3]
[1741716892388,0.05540884,126.98,126.95,0.05991571]
[1741716892588,0.05540884,126.98,126.96,7.8786]
[1741716892791,0.05540884,126.98,126.97,41.28]
[1741716894493,52.51366587,127.14,126.97,233.64]
[1741716894696,52.51366587,127.14,127.02,52.51366587]
[1741716894893,52.51366587,127.11,127.03,41.4]
[1741716895201,4.0644,127.1,127.03,41.4]
[1741716895495,7.8713,127.08,127.03,41.4]
[1741716895694,0.05488628,127.08,127.05,0.05768371]
[1741716896094,7.8719,127.07,127.05,0.05768371]
[1741716896489,0.05488628,127.08,127.05,0.05768371]
[1741716896691,7.8718,127.07,127.05,0.05768371]
[1741716896893,0.05488628,127.08,127.05,0.05768371]
[1741716897692,7.92648628,127.08,127.05,0.05768371]
[1741716897896,0.05488628,127.08,127.05,0.05768371]
[1741716898297,7.8725,127.06,127.05,0.05768371]
[1741716898598,0.05488628,127.08,127.01,41.94]
[1741716898899,259.9,127.08,127.0,41.92]
[1741716899289,7.8739,127.04,127.0,41.92]
[1741716899493,259.9,127.08,127.0,41.92]
[1741716899692,0.05534435,127.05,127.03,0.05097554]
[1741716900192,0.05534435,127.05,126.92,8.393]
[1741716900398,4.1567,127.05,126.93,52.51366587]
[1741716900700,264.0567,127.05,126.94,41.9]
[1741716900998,52.51366587,127.02,126.92,4.2781]
[1741716901187,52.51366587,126.99,126.9,41.9]
[1741716901388,52.51366587,127.02,126.9,41.9]
[1741716901596,0.05384408,126.98,126.96,0.05661442]
[1741716901797,0.05384408,126.98,126.9,94.41366587]
[1741716902100,259.9,126.97,126.86,41.88]
[1741716902297,8.4218,126.96,126.86,41.88]
[1741716902495,7.881,126.93,126.86,49.7647]
[1741716902794,8.4218,126.96,126.84,56.49576587]
[1741716902998,8.4218,126.96,126.88,0.06000655]
[1741716902999,0.05381048,126.91,126.88,0.06000655]
[1741716903402,0.05381048,126.91,126.85,41.8]
[1741716903704,0.05381048,126.91,126.8,3.9821]
[1741716903898,52.51366587,126.89,126.76,4.0213]
[1741716904200,268.3218,126.88,126.77,41.74]
[1741716904593,7.8875,126.82,126.77,41.74]
[1741716904789,0.06061899,126.84,126.81,0.05936476]
[1741716904993,0.06061899,126.84,126.77,41.68]
[1741716904994,52.57428486,126.84,126.77,41.68]
[1741716905193,94.19366587,126.87,126.77,41.68]
[1741716905391,52.51366587,126.84,126.77,41.68]
[1741716905600,7.8891,126.8,126.73,7.8924]
[1741716905802,41.66,126.82,126.73,41.66]
[1741716906097,94.15366587,126.87,126.73,41.66]
[1741716906301,268.3218,126.88,126.76,52.57268281]
[1741716906502,268.3218,126.88,126.77,41.66]
[1741716906694,268.3218,126.88,126.79,52.51366587]
[1741716907397,268.3218,126.88,126.78,52.51366587]
[1741716907592,0.05955704,126.85,126.82,7.377e-05]
[1741716907793,7.8867,126.83,126.82,7.377e-05]
[1741716907994,44.16,126.83,126.69,41.8]
[1741716908192,52.51366587,126.77,126.69,41.8]
[1741716908399,263.9955,126.76,126.65,52.36302971]
[1741716908601,267.9912,126.76,126.65,10.56302971]
[1741716908799,52.51366587,126.74,126.65,10.56302971]
[1741716909103,0.05469962,126.72,126.69,0.05786024]
[1741716909302,0.05469962,126.72,126.63,41.78]
[1741716909500,52.51366587,126.69,126.62,42.51449778]
[1741716909701,305.9155,126.68,126.62,42.51449778]
[1741716910291,3.9957,126.67,126.62,42.51449778]
[1741716910498,0.05419204,126.66,126.64,0.06008176]
[1741716910699,0.05419204,126.66,126.62,42.51449778]
[1741716911901,0.05419204,126.66,126.63,52.56339523]
[1741716912095,0.05419204,126.66,126.63,0.04972936]
[1741716913301,260.24,126.74,126.65,52.51366587]
[1741716913501,7.8955,126.69,126.63,0.04972936]
[1741716913702,42.2,126.73,126.63,42.2]
[1741716913996,7.8943,126.71,126.64,7.8983]
[1741716914204,260.24,126.74,126.63,94.71366587]
[1741716914505,0.05298334,126.68,126.66,0.05167092]
[1741716914903,260.24,126.74,126.63,94.71366587]
[1741716915105,0.05605551,126.68,126.66,0.05947749]
[1741716915300,0.05605551,126.68,126.65,7.8979]
[1741716915500,0.05240302,126.67,126.63,94.71366587]
[1741716915805,260.24,126.74,126.63,42.2]
[1741716915995,0.0534063,126.66,126.64,0.05565789]
[1741716916200,3.9611,126.73,126.63,42.2]
[1741716916401,0.05866929,126.66,126.64,0.05066483]
[1741716916603,3.9611,126.73,126.63,42.2]
[1741716916604,52.51366587,126.72,126.63,42.2]
[1741716916801,0.05781834,126.66,126.64,0.06032091]
[1741716916999,3.9611,126.73,126.64,0.06032091]
[1741716917196,52.51366587,126.71,126.57,52.51366587]
[1741716917400,0.05459655,126.66,126.57,42.32]
[1741716917604,260.42,126.65,126.63,0.0602573]
[1741716917799,260.42,126.65,126.57,42.32]
[1741716918000,260.47891518,126.65,126.63,0.05785257]
[1741716918203,260.42,126.65,126.57,42.32]
[1741716918407,260.47327837,126.65,126.63,0.05516326]
[1741716918599,260.42,126.65,126.57,42.32]
[1741716918812,260.46992469,126.65,126.57,42.32]
[1741716919002,260.46992469,126.65,126.63,0.05516841]
[1741716919201,260.42,126.65,126.62,42.46]
[1741716919400,0.05852951,126.65,126.63,0.05137484]
[1741716920214,0.05852951,126.65,126.64,7.8986]
[1741716920509,0.05852951,126.65,126.63,0.05137484]
[1741716921605,0.05852951,126.65,126.63,42.47137484]
[1741716921808,0.05852951,126.65,126.64,60.41226587]
[1741716922007,0.05852951,126.65,126.63,42.47137484]
[1741716922405,0.05852951,126.65,126.64,7.8986]
[1741716922617,260.42,126.71,126.63,94.98504071]
[1741716922911,260.42,126.71,126.66,52.51366587]
[1741716923107,260.42,126.71,126.67,42.42]
[1741716923410,11.8271,126.76,126.69,52.51366587]
[1741716923607,3.9216,126.76,126.69,52.51366587]
[1741716923811,0.05357831,126.74,126.72,52.51366587]
[1741716924010,0.05357831,126.74,126.73,50.333]
[1741716924615,0.05357831,126.74,126.73,54.281]